Cogmind - Beta 14 @@@ ROGUE MODE // 2024.08.13 @ 16:45:20 Player: Lunace Result: Self-destructed Performance ------------- Evolutions (7) 3500 Regions Visited (11) 2200 Robots Destroyed (56) 280 Value Destroyed (2712) 2712 Prototype IDs (43) 860 Alien Tech Used (1) 200 Bonus (1655) 1655 TOTAL SCORE: 11407 Bonus ------- High Alert Combat Kills 465 Follower Combat Kills 1106 Registered with UFD 300 Met Zhirov 300 Friendly Fire -516 Cogmind --------- Core Integrity 1283/1300 Matter 90/300 Energy 170/170 System Corruption 0% Temperature Cool (0) Movement Flying (37) Location -3/Research Parts ------- > --- POWER (2) -------- Light Antimatter Reactor > --- PROPULSION (4) --- Nuclear Pulse Array Field Propulsion Array > --- UTILITY (12) ----- Triangulator Spectral Analyzer Advanced Signal Interpreter Advanced Terrain Scanner 0b10 Decoder Chip [Generic] Layered Medium Armor Plating System Shield Makeshift System Shield A0-MCA's Component Scanner > --- WEAPON (3) ------- Gravity Flail > --- INVENTORY (5) ---- Impulse Thruster Impulse Thruster Advanced Shield Generator Transdimensional Reconstructor CPS Tube (2) Peak State ------------ > --- POWER ------------ Light Antimatter Reactor Heavy Antimatter Reactor > --- PROPULSION ------- Myomer Leg Myomer Leg Myomer Leg Myomer Leg > --- UTILITY ---------- Scrap Suit Advanced Heat Sink Improved Cooling System Small Storage Unit 0b10 Decoder Chip [Generic] Advanced Shield Generator Advanced Hacking Suite A0-MCA's Component Scanner Long-range Tractor Beam > --- WEAPON ----------- Phase Gun Matter Neutralizer Hardcell Cannon > --- INVENTORY -------- Flexi-carbon Leg Field Propulsion Array Advanced Energy Well Experimental Utility Shielding Makeshift System Shield Transdimensional Reconstructor CPS Tube [Rating: 119] Favorites ----------- Power Reinforced Deuterium Engine Engine Reinforced Deuterium Engine Power Core Neutrino Core Reactor Heavy Antimatter Reactor Propulsion Light Treads Treads Light Treads Leg Myomer Leg Wheel Armored Huge Wheel Flight Unit Field Propulsion Array Utility A0-MCA's Component Scanner Device Advanced Shield Generator Storage Small Storage Unit Processor A0-MCA's Component Scanner Hackware Advanced Hacking Suite Protection Scrap Shield Weapon Gauss Cannon Energy Gun Subdweller Laser Energy Cannon Subdweller Beam Cannon Ballistic Gun Assault Rifle Ballistic Cannon Gauss Cannon Launcher Proton Missile Launcher Special Weapon Mining Laser Impact Weapon Gravity Flail Build | -11 -10 -10 -7 -7 -5 -5 -5 -5 -4 -4 -3 ------- Run | Yrd Mat Sub Rec Scr Fac Upp Upp Zhi Pro Fac Res Slots Evolved 14 | . . . . . 10 . . . . 2 2 Power 1 | . . . . . 1 . . . . . . Propulsion 2 | . . . . . 2 . . . . . . Utility 10 | . . . . . 7 . . . . 1 2 Weapon 1 | . . . . . . . . . . 1 . Parts Attached 91 | 7 3 7 7 13 7 7 4 3 3 24 6 Power 15 | 1 . . 2 2 1 1 2 1 . 5 . Engine 7 | 1 . . 2 1 . 1 1 . . 1 . Core 3 | . . . . 1 1 . 1 . . . . Reactor 5 | . . . . . . . . 1 . 4 . Propulsion 22 | 2 . 1 3 4 2 1 1 . . 7 1 Treads 6 | 2 . . 3 1 . . . . . . . Leg 5 | . . . . . . . . . . 5 . Wheel 8 | . . 1 . 3 2 1 1 . . . . Hover . | . . . . . . . . . . . . Flight 3 | . . . . . . . . . . 2 1 Utility 30 | 2 1 1 . 5 4 4 . 1 . 8 4 Device 14 | 1 . . . 1 4 2 . 1 . 4 1 Storage 3 | 1 1 . . 1 . . . . . . . Processor 5 | . . . . 2 . 1 . . . 1 1 Hackware 4 | . . . . . . . . . . 3 1 Protection 4 | . . 1 . 1 . 1 . . . . 1 Artifact . | . . . . . . . . . . . . Weapon 24 | 2 2 5 2 2 . 1 1 1 3 4 1 Energy Gun 3 | 1 . 1 . . . . . . . 1 . Energy Cannon 2 | . . 1 . . . . . . 1 . . Ballistic Gun 8 | 1 1 3 . 1 . . . . 1 1 . Ballistic Cannon 8 | . . . 2 1 . 1 1 . 1 2 . Launcher 1 | . . . . . . . . 1 . . . Special Weapon 1 | . 1 . . . . . . . . . . Impact Weapon 1 | . . . . . . . . . . . 1 Slashing Weapon . | . . . . . . . . . . . . Piercing Weapon . | . . . . . . . . . . . . Special Melee Weapon . | . . . . . . . . . . . . Unidentified Prototypes 1 | . . . . . . . . 1 . . . Corrupted Parts 2 | . . . . . . . 1 . 1 . . System Corruption 6 | . . . . . . . 4 . 2 . . Parts Lost 20 | . . 1 . . . . . . . 19 . Power 3 | . . . . . . . . . . 3 . Propulsion 5 | . . 1 . . . . . . . 4 . Utility 9 | . . . . . . . . . . 9 . Weapon 3 | . . . . . . . . . . 3 . Highest Loss Streak 13 | . . 1 . . . . . . . 13 . To Critical Strikes . | . . . . . . . . . . . . Average Slot Usage (%) 82 | . 100 91 85 81 61 80 76 66 75 80 49 Engine 10 | . 14 14 14 12 5 9 7 2 . . . Core 1 | . . . . 1 4 . 3 5 5 . . Treads 9 | . 28 27 23 3 . . . . . . . Leg 1 | . . . . . . . . . . 13 . Wheel 7 | . . . 4 12 9 14 11 11 11 2 . Device 7 | . 14 6 . . 16 19 17 17 17 19 5 Storage 5 | . 14 6 . 6 5 5 5 5 5 4 . Processor 7 | . . . . 11 5 9 11 11 11 11 17 Protection 5 | . . 7 14 4 . 4 5 5 5 . 1 Energy Gun 1 | . 9 3 3 . . . . . . . . Energy Cannon 2 | . . 9 . . . . . . 1 2 . Ballistic Gun 3 | . 16 14 3 . . . . . 1 3 . Ballistic Cannon 14 | . . . 21 27 11 11 11 1 3 6 . Peak Build Rating 119 | 7 7 12 23 37 65 83 90 92 101 119 94 Average Rating 41 | 4 7 9 17 29 59 75 87 86 97 102 78 On Entrance 46 | . 7 7 12 20 32 65 83 90 92 101 51 Naked Turns . | . . . . . . . . . . . . Heaviest Build 85 | 15 20 35 37 47 56 70 74 74 80 85 25 Greatest Support 100 | 40 40 40 40 40 54 54 48 40 40 100 28 Greatest Overweight (x) 2 | . . 1 1 1 1 1 1 1 1 2 . Average Overweight (x) . | . . . . . 1 1 1 1 1 . . Largest Inventory Capacity 10 | 8 10 10 5 8 8 8 8 8 8 8 5 Average Capacity 6 | 7 9 7 5 6 8 8 8 8 8 7 5 Most Carried 9 | 2 4 9 5 8 8 8 8 8 8 8 5 Average Carried 5 | . 2 5 3 4 7 6 7 7 7 6 3 Final Capacity 10 | 8 10 5 5 8 8 8 8 8 8 5 5 Final Carried 8 | 2 4 2 5 8 7 6 8 8 8 3 5 Class Distribution -------------------- 49% | Commander-Mutant 13% | Mutant 11% | Subdweller-Mutant 10% | Scavenger-Scrapper 6% | Scavenger-Mutant 4% | Scavenger-Tank Dominant Class ---------------- Mutant | -10/Materials Subdweller-Mutant | -10/Subcaves Commander-Mutant | -7/Recycling Commander-Mutant | -7/Scraptown Commander-Mutant | -5/Factory Scavenger-Mutant | -5/Upper Caves Scavenger-Scrapper | -5/Upper Caves Scavenger-Scrapper | -5/Zhirov Scavenger-Scrapper | -4/Proximity Caves Scavenger-Tank | -4/Factory Hacker-Mutant | -3/Research Resources | -11 -10 -10 -7 -7 -5 -5 -5 -5 -4 -4 -3 ----------- Run | Yrd Mat Sub Rec Scr Fac Upp Upp Zhi Pro Fac Res Matter Collected 4064 | 259 29 387 118 153 1136 491 112 . 211 1094 74 Remotely 2116 | . . . . . 763 423 . . . 930 . Salvage Created 2588 | 10 49 412 297 . 189 106 . . 404 1098 23 Parts 117 | 5 8 31 8 . 3 2 . . 14 42 4 Haulers Intercepted 1 | . . . 1 . . . . . . . . Recyclers Shooed 2 | . . . . . 1 . . . . 1 . Parts Field Recycled . | . . . . . . . . . . . . Retrieved Matter . | . . . . . . . . . . . . Parts Self-Destructed 41 | . . 12 . . . 15 14 . . . . Prevented 13 | . . . . . . 2 1 . 10 . . Kills | -11 -10 -10 -7 -7 -5 -5 -5 -5 -4 -4 -3 ------- Run | Yrd Mat Sub Rec Scr Fac Upp Upp Zhi Pro Fac Res Combat Hostiles Destroyed 47 | . . 11 5 . 2 2 . . 7 20 . Guns 18 | . . 9 3 . . . . . . 6 . Cannons 23 | . . 2 2 . 2 2 . . 2 13 . AOE 2 | . . . . . . . . . 2 . . Classes Destroyed 15 | 1 2 2 4 . 2 1 . . 1 2 . Builder 1 | . 1 . . . . . . . . . . Tunneler 3 | 1 . . . . . . . . . 1 1 Hauler 1 | . . . 1 . . . . . . . . Recycler 1 | . . . . . 1 . . . . . . Drone 2 | . . . . . . . . . 2 . . Watcher 2 | . 1 . . . . . . . . 1 . Swarmer 3 | . . 2 . . 1 . . . . . . Grunt 16 | . . . 2 . 1 . . . 4 9 . Brawler 2 | . . . 1 . . . . . . 1 . Duelist 1 | . . . . . . . . . . 1 . Protector 1 | . . . . . 1 . . . . . . Sentry 6 | . . . 2 . . . . . 1 3 . Hunter 5 | . . . . . . . . . . 5 . Programmer 2 | . . . . . . 1 . . . 1 . Subdweller 9 | . . 9 . . . . . . . . . Savage 1 | . . . . . . 1 . . . . . Best Kill Streak 5 | 1 2 2 3 . 1 1 . . 4 5 1 Combat Bots Only 4 | . . 2 3 . 1 1 . . 4 4 . Max Kills in Single Turn 1 | 1 1 1 1 . 1 1 . . 1 1 1 Gunslinging . | . . . . . . . . . . . . Exploded 1 | . . . . . . . . . 1 . . Melee . | . . . . . . . . . . . . Uniques/NPCs Destroyed . | . . . . . . . . . . . . Combat | -11 -10 -10 -7 -7 -5 -5 -5 -5 -4 -4 -3 -------- Run | Yrd Mat Sub Rec Scr Fac Upp Upp Zhi Pro Fac Res Hostile Shots Fired 536 | . . 75 27 . 7 21 3 . 30 365 8 Missed 195 | . . 29 10 . 4 7 . . 15 126 4 Damage Taken 5109 | . . 667 101 . 57 260 69 . 290 3577 88 Core 730 | . . 71 14 . . 16 . . 20 592 17 Absorbed by Shields 922 | . . . 51 . 21 95 25 . 105 625 . Regen/Repaired (Parts) 80 | . . . . . . . . . . 80 . Core Remaining (%) 77 | 100 . . . 66 . . . . 96 48 . Volleys Fired 213 | 1 6 69 10 . 9 17 6 . 18 77 . Largest 3 | 2 2 2 2 . 2 2 2 . 2 3 . Hottest 214 | 70 100 110 96 . 96 101 101 . 105 214 . Shots Fired 465 | 2 9 113 20 . 18 34 12 . 31 226 . Gun 179 | 2 6 87 12 . . . . . . 72 . Cannon 267 | . . 26 8 . 18 34 12 . 15 154 . Launcher 16 | . . . . . . . . . 16 . . Special 3 | . 3 . . . . . . . . . . Kinetic 344 | 1 6 61 14 . 18 34 12 . 14 184 . Thermal 105 | 1 3 52 6 . . . . . 1 42 . Explosive . | . . . . . . . . . . . . Electromagnetic 16 | . . . . . . . . . 16 . . Robot Hit Streak 24 | 2 4 24 9 . 9 7 1 . 7 11 . Robot Miss Streak 7 | . 2 2 3 . 2 2 7 . 1 5 . Penetration Max 1 | . . . . . 1 . . . . 1 . Secondary Targets 1 | . . 1 . . . . . . . . . Max Gunslinging Chain 1 | . . 1 . . . . . . . . . Shots Hit Robots 257 | 2 2 62 13 . 12 21 3 . 20 121 1 Core Hits 114 | 1 2 18 7 . 6 8 1 . 14 56 1 Critical Kills 2 | . . . . . . . . . . 2 . Critical Parts Destroyed 3 | . . . 1 . . . . . . 2 . Critical Strikes 24 | . . . 4 . 3 2 . . 1 14 . Meltdown 1 | . . . . . . . . . . 1 . Destroy 4 | . . . 1 . . . . . . 3 . Blast 19 | . . . 3 . 3 2 . . 1 10 . Melee Attacks 9 | . . . . . . . . . . . 9 Impact 9 | . . . . . . . . . . . 9 Slashing . | . . . . . . . . . . . . Piercing . | . . . . . . . . . . . . Sneak Attacks 1 | . . . . . . . . . . . 1 Combat Hostiles . | . . . . . . . . . . . . Follow-up Attacks . | . . . . . . . . . . . . Damage Inflicted 7946 | 24 40 1098 415 . 452 692 116 . 1046 3984 79 Guns 2405 | 24 40 935 217 . . . . . . 1189 . Cannons 4725 | . . 163 198 . 452 692 116 . 309 2795 . Explosions 721 | . . . . . . . . . 721 . . Melee 79 | . . . . . . . . . . . 79 Ramming 16 | . . . . . . . . . 16 . . Kinetic 5744 | 12 40 650 314 . 452 692 116 . 309 3159 . Thermal 1386 | 12 . 448 101 . . . . . . 825 . Explosive . | . . . . . . . . . . . . Electromagnetic 721 | . . . . . . . . . 721 . . Impact 79 | . . . . . . . . . . . 79 Slashing . | . . . . . . . . . . . . Piercing . | . . . . . . . . . . . . Highest Corruption 7 | . . . . . . . 4 4 7 . . Average Corruption 4 | . . . . . . . 4 4 5 . . Corruption Purged . | . . . . . . . . . . . . Corruption Blocked . | . . . . . . . . . . . . Effects 13 | . . . . . . . 4 3 6 . . Message Errors 5 | . . . . . . . 2 . 3 . . Matter Fused 2 | . . . . . . . . 2 . . . Heat Flow Errors 2 | . . . . . . . 1 . 1 . . Data Loss (minor) 3 | . . . . . . . 1 1 1 . . Misfires 1 | . . . . . . . . . 1 . . Overload Shots . | . . . . . . . . . . . . Overflow Damage 142 | . . . 18 . 42 . . . 35 47 . Projectiles 112 | . . . 18 . 42 . . . 5 47 . Explosions 30 | . . . . . . . . . 30 . . Melee . | . . . . . . . . . . . . Knockbacks 27 | . . . 1 . 5 1 . . 2 18 . Impact . | . . . . . . . . . . . . Kinetic 26 | . . . 1 . 5 1 . . 2 17 . Secondary 1 | . . . . . . . . . . 1 . Self-Inflicted Damage 65 | . . . . . . . . . 65 . . Shots 4 | . . . . . . . . . 4 . . Rammed 1 | . . . . . . . . . 1 . . Targets Rammed 1 | . . . . . . . . . 1 . . Kicked . | . . . . . . . . . . . . Crushed . | . . . . . . . . . . . . Highest Temperature 207 | 9 20 2 207 . 120 126 118 . 102 112 . Average Temperature 49 | 6 10 2 80 . 50 48 67 . 67 43 . Received Heat Transfer 638 | . . 108 45 . . 33 6 . 51 377 18 Siege Activations . | . . . . . . . . . . . . Robots Corrupted 3 | . . . . . . . . . 3 . . Combat Hostiles 3 | . . . . . . . . . 3 . . Parts Fried 3 | . . . . . . . . . 3 . . Impact Corruptions . | . . . . . . . . . . . . Robots Melted 1 | . . . . . . . . . . 1 . Combat Hostiles 1 | . . . . . . . . . . 1 . Parts Melted 1 | . . 1 . . . . . . . . . Heat Transferred 1604 | 37 . 572 125 . . . . . . 870 . Parts Sabotaged . | . . . . . . . . . . . . Parts Stolen . | . . . . . . . . . . . . Parts Stripped . | . . . . . . . . . . . . Power Chain Reactions 1 | . . . . . . . . . 1 . . Alert | -11 -10 -10 -7 -7 -5 -5 -5 -5 -4 -4 -3 ------- Run | Yrd Mat Sub Rec Scr Fac Upp Upp Zhi Pro Fac Res Peak Influence 911 | 5 30 . 173 . 281 . . . . 911 711 Initial 472 | . 3 . 28 . . . . . . 248 472 Average 278 | 1 11 . 59 . 93 . . . . 657 550 Maximum Alert Level 3 | . . . . . 1 . . . . 3 3 Low Security (%) 59 | 100 100 . 100 . 79 . . . . . . Level 1 5 | . . . . . 20 . . . . 9 . Level 2 19 | . . . . . . . . . . 38 98 Level 3 15 | . . . . . . . . . . 52 1 Level 4 . | . . . . . . . . . . . . Level 5 . | . . . . . . . . . . . . High Security . | . . . . . . . . . . . . Max Security . | . . . . . . . . . . . . Squads Dispatched 14 | . . . . . . . . . . 13 1 Investigation 4 | . . . . . . . . . . 3 1 Extermination . | . . . . . . . . . . . . Reinforcement 5 | . . . . . . . . . . 5 . Assault 1 | . . . . . . . . . . 1 . Garrison 4 | . . . . . . . . . . 4 . Intercept . | . . . . . . . . . . . . Searches Triggered . | . . . . . . . . . . . . Construction Impeded 3 | . . . . . . . . . . 3 . Haulers Reinforced . | . . . . . . . . . . . . Active Scanning Responses . | . . . . . . . . . . . . Cargo Convoy Interrupts . | . . . . . . . . . . . . Stealth | -11 -10 -10 -7 -7 -5 -5 -5 -5 -4 -4 -3 --------- Run | Yrd Mat Sub Rec Scr Fac Upp Upp Zhi Pro Fac Res Distress Signals 3 | . . . . . . . . . . 2 1 Communications Jammed . | . . . . . . . . . . . . Distress Signals . | . . . . . . . . . . . . Times Spotted 117 | . 3 11 5 . 8 15 4 . 13 45 13 Peak Tracking Total 20 | . 3 2 3 . 4 4 2 . 4 20 7 Tactical Retreats 5 | . . 2 . . . . . . 1 . 2 Traps | -11 -10 -10 -7 -7 -5 -5 -5 -5 -4 -4 -3 ------- Run | Yrd Mat Sub Rec Scr Fac Upp Upp Zhi Pro Fac Res Traps Triggered 1 | . . 1 . . . . . . . . . Indirectly . | . . . . . . . . . . . . Trap Hack Attempts . | . . . . . . . . . . . . Triggered . | . . . . . . . . . . . . Disarmed . | . . . . . . . . . . . . Reprogrammed . | . . . . . . . . . . . . Reused . | . . . . . . . . . . . . Traps Extracted . | . . . . . . . . . . . . Installed . | . . . . . . . . . . . . Triggered . | . . . . . . . . . . . . Most Traps Carried 3 | . . . . 3 3 3 3 3 . . . Machines | -11 -10 -10 -7 -7 -5 -5 -5 -5 -4 -4 -3 ---------- Run | Yrd Mat Sub Rec Scr Fac Upp Upp Zhi Pro Fac Res Machines Disabled 7 | . . 1 . . 2 . . . . 3 1 Max in Single Turn 2 | . . 1 . . 1 . . . . 2 1 Garrison Access 2 | . . . . . . . . . . 1 1 Machines Repaired . | . . . . . . . . . . . . Machines Dismantled . | . . . . . . . . . . . . Machines Sabotaged . | . . . . . . . . . . . . Overloaded Fab Kills 1 | . . . . . . . . . . 1 . Hacking | -11 -10 -10 -7 -7 -5 -5 -5 -5 -4 -4 -3 --------- Run | Yrd Mat Sub Rec Scr Fac Upp Upp Zhi Pro Fac Res Machines Accessed 29 | . 1 1 7 1 1 1 . 4 . 6 7 Terminals 12 | . . . 5 . 1 . . . . 2 4 Fabricators 3 | . . . . . . . . . . 2 1 Repair Stations 1 | . . . . . . . . . . 1 . Recycling Units 4 | . 1 . 1 . . . . . . 1 1 Scanalyzers . | . . . . . . . . . . . . Garrison Access 1 | . . . . . . . . . . . 1 Total Hacks 83 | . 1 4 18 17 1 1 . 17 . 10 14 Successful 57 | . 1 4 8 17 . 1 . 17 . 5 4 Failed 26 | . . . 10 . 1 . . . . 5 10 Catastrophic 9 | . . . 3 . 1 . . . . 1 4 Database Lockouts . | . . . . . . . . . . . . Manual 26 | . . . 9 . 1 . . . . 7 9 Terminals 27 | . . . 12 . 1 . . . . 5 9 Fabricators 3 | . . . . . . . . . . 2 1 Repair Stations 1 | . . . . . . . . . . 1 . Recycling Units 9 | . 1 . 3 . . . . . . 2 3 Scanalyzers . | . . . . . . . . . . . . Garrison Access 1 | . . . . . . . . . . . 1 Terminal Hacks 44 | . . 4 4 17 . 1 . 17 . . 1 Record 29 | . . 4 3 17 . . . 5 . . . Part Schematic 4 | . . . . . . . . 4 . . . Robot Analysis 4 | . . . . . . . . 4 . . . Prototype ID Bank 5 | . . . 1 . . . . 4 . . . Open Door 1 | . . . . . . 1 . . . . . Locate Traps 1 | . . . . . . . . . . . 1 Fabricator Hacks . | . . . . . . . . . . . . Repair Station Hacks . | . . . . . . . . . . . . Recycling Unit Hacks 2 | . 1 . 1 . . . . . . . . Retrieve Components 2 | . 1 . 1 . . . . . . . . Scanalyzer . | . . . . . . . . . . . . Garrison Access Hacks 1 | . . . . . . . . . . . 1 Seal Access 1 | . . . . . . . . . . . 1 Unauthorized Hacks 10 | . . . 3 . . . . . . 5 2 Terminals 5 | . . . 2 . . . . . . 2 1 Botnet 5 | . . . 2 . . . . . . 2 1 Fabricators 1 | . . . . . . . . . . 1 . Overload 1 | . . . . . . . . . . 1 . Repair Stations 3 | . . . . . . . . . . 2 1 Patch 1 | . . . . . . . . . . 1 . Recycling Units 1 | . . . 1 . . . . . . . . Tunnel 1 | . . . 1 . . . . . . . . Fedlink 2 | . . . . . . . . . . 1 1 Scanalyzers . | . . . . . . . . . . . . Garrison Access . | . . . . . . . . . . . . Data Cores Recovered . | . . . . . . . . . . . . Used . | . . . . . . . . . . . . Hacking Detections 16 | . . . 5 . 1 . . . . 4 6 Full Trace Events . | . . . . . . . . . . . . Feedback Events . | . . . . . . . . . . . . Feedback Blocked . | . . . . . . . . . . . . Robot Schematics Acquired . | . . . . . . . . . . . . Robots Built . | . . . . . . . . . . . . Authchips . | . . . . . . . . . . . . Time . | . . . . . . . . . . . . Total Robot Build Rating . | . . . . . . . . . . . . Part Schematics Acquired 4 | . . . . . . . . 4 . . . Parts Built . | . . . . . . . . . . . . Authchips . | . . . . . . . . . . . . Time . | . . . . . . . . . . . . Total Part Build Rating . | . . . . . . . . . . . . Parts Repaired . | . . . . . . . . . . . . Time . | . . . . . . . . . . . . Parts Recycled . | . . . . . . . . . . . . Recycled Matter . | . . . . . . . . . . . . Retrieved Matter . | . . . . . . . . . . . . Retrieved Components 6 | . 2 . 4 . . . . . . . . Parts Scanalyzed . | . . . . . . . . . . . . Part Schematics Acquired . | . . . . . . . . . . . . Parts Damaged . | . . . . . . . . . . . . Bothacking | -11 -10 -10 -7 -7 -5 -5 -5 -5 -4 -4 -3 ------------ Run | Yrd Mat Sub Rec Scr Fac Upp Upp Zhi Pro Fac Res Used RIF Installer . | . . . . . . . . . . . . Robots Hacked . | . . . . . . . . . . . . Non-combat . | . . . . . . . . . . . . Combat . | . . . . . . . . . . . . Robot Hacks Applied . | . . . . . . . . . . . . Relay Couplers Released 2 | . . . . . . . . . . 2 . Machine Destruction 2 | . . . . . . . . . . 2 . Fabnet Peak Effective % . | . . . . . . . . . . . . Robots Rewired 17 | . . . 17 . . . . . . . . Allies Hacked . | . . . . . . . . . . . . Hacks Repelled . | . . . . . . . . . . . . Allies | -11 -10 -10 -7 -7 -5 -5 -5 -5 -4 -4 -3 -------- Run | Yrd Mat Sub Rec Scr Fac Upp Upp Zhi Pro Fac Res Total Allies 23 | . . . 17 1 . 5 . . . . . Largest Group 15 | . . . 15 10 10 10 8 4 4 3 . Highest-Rated Group 435 | . . . 297 320 320 435 361 173 173 157 . Highest-Rated Ally 82 | . . . 40 82 82 82 82 82 82 82 . Total Orders 10 | . . . 6 4 . . . . . . . STAY 1 | . . . . 1 . . . . . . . ROAM 6 | . . . 6 . . . . . . . . EXPLORE 3 | . . . . 3 . . . . . . . Ally Attacks 198 | . . . 6 . 28 90 19 . 4 51 . Total Damage 4081 | . . . 93 . 713 1787 403 . 27 1058 . Kills 35 | . . . 1 . 9 14 5 . . 6 . Allies Corrupted 1 | . . . . . . . 1 . . . . Allies Melted . | . . . . . . . . . . . . Intel | -11 -10 -10 -7 -7 -5 -5 -5 -5 -4 -4 -3 ------- Run | Yrd Mat Sub Rec Scr Fac Upp Upp Zhi Pro Fac Res Robot Analysis Total 4 | . . . . . . . . 4 . . . Derelict Logs Recovered 5 | . . 1 . 1 . 1 2 . . . . Drone Launches 3 | . . . . 3 . . . . . . . Drone Recoveries . | . . . . . . . . . . . . Decoded 0b10 Intel 24 | . . . . . . . . . . 17 7 Traps 2 | . . . . . . . . . . 2 . Emergency Access 3 | . . . . . . . . . . 2 1 Items 15 | . . . . . . . . . . 9 6 Machines 2 | . . . . . . . . . . 2 . Patrols 1 | . . . . . . . . . . 1 . Guards 1 | . . . . . . . . . . 1 . Exploration | -11 -10 -10 -7 -7 -5 -5 -5 -5 -4 -4 -3 ------------- Run | Yrd Mat Sub Rec Scr Fac Upp Upp Zhi Pro Fac Res Turns Passed 7416 | 89 164 1372 891 2590 229 514 287 167 250 672 191 Spaces Moved 5114 | 50 83 718 335 2046 137 368 227 149 161 439 401 Core 5 | 5 . . . . . . . . . . . Treads 1245 | 45 83 705 240 172 . . . . . . . Legs 222 | . . . . . . . . . . 222 . Wheels 3091 | . . 13 95 1874 137 368 227 149 161 67 . Hover . | . . . . . . . . . . . . Flight 551 | . . . . . . . . . . 150 401 Fastest Speed 37 | 50 160 120 120 115 108 97 80 80 80 37 37 Average Speed 114 | 149 160 159 156 119 113 104 86 80 80 87 37 Slowest Speed 260 | 160 160 160 250 170 115 108 97 80 80 260 40 Overloaded Moves . | . . . . . . . . . . . . Propulsion Burnouts . | . . . . . . . . . . . . Robots Hopped 16 | . . . . . . . . . . 8 8 Cave-ins Triggered . | . . . . . . . . . . . . Exploration Rate (%) 42 | 5 23 80 63 92 5 61 45 60 37 15 18 Regions Visited 11 Branch Regions 7 Pre-discovered Areas 10 | . . 1 1 5 . . . 3 . . . Known Exits Taken 4 | . . . . 1 . 1 . . 1 1 . Unknown Exits Taken 7 | 1 1 1 1 . 1 . 1 1 . . . Scrap Searched 17 | . . 4 . 7 . 1 3 . 2 . . Spaces Dug 8 | . 1 1 . . . . . . 1 . 5 Terrain Destroyed 94 | . 1 1 1 . 3 7 5 . 3 68 5 Melee 5 | . . . . . . . . . . . 5 Projectile 89 | . 1 1 1 . 3 7 5 . 3 68 . AOE . | . . . . . . . . . . . . Terrain Rammed . | . . . . . . . . . . . . Walls Destroyed . | . . . . . . . . . . . . Machines Disabled . | . . . . . . . . . . . . Actions | -11 -10 -10 -7 -7 -5 -5 -5 -5 -4 -4 -3 --------- Run | Yrd Mat Sub Rec Scr Fac Upp Upp Zhi Pro Fac Res Total 6263 | 59 99 834 684 2202 191 465 304 200 248 561 416 Wait 458 | . 5 15 89 77 32 65 64 33 64 11 3 Move 5076 | 49 82 717 334 2045 136 367 226 148 161 424 387 Hop 12 | . . . . . . . . . . 6 6 Pick Up 65 | 2 1 9 3 31 4 1 2 4 1 3 4 Fast Attach 60 | 7 1 3 3 7 6 5 3 3 1 16 5 Attach 15 | . . 2 . 4 1 1 . . 1 5 1 Detach 6 | . 1 . . 1 . 1 . 2 . 1 . Swap 17 | . 2 2 4 2 . 1 1 1 1 3 . Drop 94 | . 1 14 6 35 3 7 2 9 1 15 1 Fire 213 | 1 6 69 10 . 9 17 6 . 18 77 . Melee 9 | . . . . . . . . . . . 9 Ram . | . . . . . . . . . . . . Kick . | . . . . . . . . . . . . Crush . | . . . . . . . . . . . . Escape Stasis . | . . . . . . . . . . . . Rewire 234 | . . . 234 . . . . . . . . Trap . | . . . . . . . . . . . . Miscellaneous 4 | . . 3 1 . . . . . . . . Route ------- -11/Scrapyard -10/Materials -10/Subcaves (discovered 3 exits: [*Mat x2] / *Rec) -7/Recycling -7/Scraptown (discovered 2 exits: *Fac x2) -5/Factory (discovered 2 exits: Fac / *Upp) -5/Upper Caves -5/Upper Caves (discovered 2 exits: *Fac / *Zhi) -5/Zhirov -4/Proximity Caves -4/Factory -3/Research (discovered 3 exits: Res x2 / Qua) History --------- Turn | Location | Event 12 | -11/Scrapyard | Discovered new exit (range 16) 90 | -11/Scrapyard | Entered Materials 249 | -10/Materials | Discovered new exit (range 3) 254 | -10/Materials | Entered Subcaves 258 | -10/Subcaves | Ambushed by Subdwellers from Twisted Machinery 317 | -10/Subcaves | Build established: Mutant 472 | -10/Subcaves | Shifting Twisted Machinery released Sub. Optics 509 | -10/Subcaves | Shifting Twisted Machinery released Flamer 637 | -10/Subcaves | Visited Clippyterm 642 | -10/Subcaves | Learned location of Deep Caves (-6) 642 | -10/Subcaves | Learned Factory trap positions 839 | -10/Subcaves | Shifting Twisted Machinery released Sub. Machine Gun 885 | -10/Subcaves | Disturbed a concealed Subdweller 1061 | -10/Subcaves | Discovered new exit (range 10) 1199 | -10/Subcaves | Build established: Subdweller-Mutant 1297 | -10/Subcaves | Discovered new exit (range 7) 1457 | -10/Subcaves | Learned Materials emergency access door positions 1592 | -10/Subcaves | Discovered new exit (range 11) 1626 | -10/Subcaves | Entered Recycling 2042 | -7/Recycling | Build established: Commander-Mutant 2404 | -7/Recycling | Scanned before Scraplab entrance 2427 | -7/Recycling | Entered Scraplab 2441 | -7/Recycling | Discovered new exit (range 2) 2517 | -7/Recycling | Entered Scraptown 2517 | -7/Scraptown | Accompanied by 9 allies 2686 | -7/Scraptown | Visited UFD Registry 2686 | -7/Scraptown | Registered with UFD as "Phasespawn" 2763 | -7/Scraptown | Visited Chapter 10 2797 | -7/Scraptown | Visited DA-N13 Charitable Foundation 2803 | -7/Scraptown | Found DCF Scrap (31 items) 2871 | -7/Scraptown | Delivered Scrap Shield to a Scientist 2999 | -7/Scraptown | Visited Botcube Research 3006 | -7/Scraptown | Found Lrg. Botcube 3220 | -7/Scraptown | Visited Research Penetration Think Tank 3246 | -7/Scraptown | Visited Scrapoid Pod Storage 3251 | -7/Scraptown | Found Scrapoid Pod 3266 | -7/Scraptown | Visited Science Testing Area 3324 | -7/Scraptown | Found Scrap Suit 3358 | -7/Scraptown | Visited A0-MCA Data Center 3365 | -7/Scraptown | Given a B rating by A0-MCA 3370 | -7/Scraptown | Found A0-MCA's Component Scanner 3398 | -7/Scraptown | Visited Science Guys 3419 | -7/Scraptown | Visited Cartography Club 3490 | -7/Scraptown | Learned location of Warlord (-4) 3490 | -7/Scraptown | Learned location of Cetus (-6) 3490 | -7/Scraptown | Learned location of Testing (-2) 3490 | -7/Scraptown | Learned 16 Materials zone layouts 3490 | -7/Scraptown | Learned 8 Research zone layouts 3490 | -7/Scraptown | Learned 12 Research zone layouts 3490 | -7/Scraptown | Learned 16 Lower Caves zone layouts 3490 | -7/Scraptown | Learned 12 Upper Caves zone layouts 3490 | -7/Scraptown | Learned 24 Proximity Caves zone layouts 3490 | -7/Scraptown | Learned Materials emergency access door positions 3490 | -7/Scraptown | Learned location of 2 exits from Upper Caves 3490 | -7/Scraptown | Learned location of 1 exit from Proximity Caves 3490 | -7/Scraptown | Identified exit to Factory 3737 | -7/Scraptown | Visited Assassins FH 3768 | -7/Scraptown | Visited Artisan Demo Area 3796 | -7/Scraptown | Visited Bundlers 4019 | -7/Scraptown | Lrg. Botcube completed mutation into treaded form, armed with 2 melee weapons. 4180 | -7/Scraptown | Heard Great Nut preacher, LISTEN AND RECITE! 4616 | -7/Scraptown | Scanned Subdweller tech in exchange for log data 4731 | -7/Scraptown | Guru changed UFD alias to "Rusttube" 4778 | -7/Scraptown | Visited Spacefarers 5107 | -7/Scraptown | Entered Factory 5107 | -5/Factory | Accompanied by 10 allies 5107 | -5/Factory | Evolved 10 slots: Power x1, Propulsion x2, Utility x7 5108 | -5/Factory | Identified exit to Factory 5109 | -5/Factory | Loaded intel: 114 trap records 5268 | -5/Factory | Lost 4 allies 5280 | -5/Factory | Discovered new exit (range 9) 5336 | -5/Factory | Entered Upper Caves 5336 | -5/Upper Caves | Accompanied by 5 allies 5337 | -5/Upper Caves | Identified exit to Upper Caves 5338 | -5/Upper Caves | UFD Scientist delivered a prototype 5341 | -5/Upper Caves | Found Enh. Scrap Shield 5399 | -5/Upper Caves | Scrapoid Pod released 05U05-D (x5) 5419 | -5/Upper Caves | Ambushed by wild Derelicts 5469 | -5/Upper Caves | Spotted B-75 Beast 5482 | -5/Upper Caves | Allies destroyed B-75 Beast 5656 | -5/Upper Caves | Attracted the attention of an 0b10 checkpoint 5657 | -5/Upper Caves | Found Scrap Suit 5727 | -5/Upper Caves | Build established: Scavenger-Mutant 5850 | -5/Upper Caves | Entered another Upper Caves area 5850 | -5/Upper Caves | Accompanied by 8 allies 5862 | -5/Upper Caves | Learned Factory terminal intel 5949 | -5/Upper Caves | Attracted the attention of an 0b10 checkpoint 5984 | -5/Upper Caves | Lost 4 allies 6030 | -5/Upper Caves | Encountered a Warlord checkpoint 6061 | -5/Upper Caves | Discovered new exit (range 16) 6137 | -5/Upper Caves | Entered Zhirov 6137 | -5/Zhirov | Accompanied by 4 allies 6137 | -5/Zhirov | Discovered new exit (range 3) 6156 | -5/Zhirov | Met Zhirov 6172 | -5/Zhirov | Learned location of Quarantine (-3) 6172 | -5/Zhirov | Learned location of Command (-1) 6180 | -5/Zhirov | Zhirov requested help retrieving the SGEMP Prototype 6193 | -5/Zhirov | Found Alien Artifact 6193 | -5/Zhirov | Identified Integrated Dissipator 6193 | -5/Zhirov | Installed Integrated Dissipator, increased core heat dissipation (+20) 6206 | -5/Zhirov | Found Alien Artifact 6254 | -5/Zhirov | Build established: Scavenger-Scrapper 6304 | -5/Zhirov | Entered Proximity Caves 6304 | -4/Proximity Caves | Accompanied by 4 allies 6406 | -4/Proximity Caves | Spotter reported a threat 6420 | -4/Proximity Caves | Attracted the attention of an 0b10 checkpoint 6554 | -4/Proximity Caves | Entered Factory 6554 | -4/Factory | Accompanied by 3 allies 6554 | -4/Factory | Evolved 2 slots: Utility x1, Weapon x1 6555 | -4/Factory | Loaded intel: 26 terminal locations 6587 | -4/Factory | Garrison activated, responded to threat 6995 | -4/Factory | Build established: Scavenger-Tank 7191 | -4/Factory | Lost 13 parts (1p3n6u3w) 7218 | -4/Factory | Spotted B-86 Titan 7224 | -4/Factory | Discovered new exit (range 7) 7225 | -4/Factory | Identified exit to Research 7226 | -4/Factory | Entered Research 7226 | -3/Research | Evolved 2 slots: Utility x2 7227 | -3/Research | Identified exit to Quarantine 7228 | -3/Research | Identified exit to Research 7256 | -3/Research | Lost 3 parts (1p1n1u) 7293 | -3/Research | Found Spectral Analyzer 7383 | -3/Research | Spotted B-86 Titan 7417 | -3/Research | Self-destructed Last Messages --------------- Neutralizer. 07348_ Component scanned: Exp. Power Amplifier. 07350_ >> DECODED: Emergency access location. 07350_ Acquired Adv. Terrain Scanner. 07354_ Sneak attack on T-07 Excavator. 07354_ T-07 Excavator destroyed. 07357_ Acquired 23 matter. 07357_ Slug penetrates Wall. 07374_ >> DECODED: Nuclear Pulse Array location. 07381_ Slug penetrates Wall. 07388_ Dropped Matter Compressor. 07389_ Acquired Adv. Shield Generator. 07390_ Extracted 51 matter. 07392_ O-32 Director: "IFF HANDSHAKE FAILED. SECURING TERMINAL." 07397_ Connecting with Terminal... 07397_ Terminal disabled. 07399_ >> DECODED: Com. Wheel location. 07405_ Connecting with Terminal... 07415_ Terminal disabled. Map ----- +----------------------------------------------------+ | """"""" # #???# ??????????????????????????? | | """"""" # #???# ??????????????????????????? | | # #???# ??????????????????????????? | | # #???# ??????????????????????????? | | """"T"""" # #???# ??????????????????????????? | | """"""""""" # #???####??????????????????????????? | | ############## ########???? ?????????????????????? | | ??????????# #??????????????????????????? | | ??????????# #??????????????????????????? | | ??????????# #??????? ??????????????????? | | ??????????# +??????????????????????????? | | ??????????######## #??????????????????????????? | | ?????????????????# #??????????????????????????? | | ?????????????????# # ? ?? ????#???????????????? | | ?????????????????# #??????????????????????????? | | ?????????????????# #???????#?????????"???????? | | ?????????????????# #??????????????????????????? | | ?????????????????# ##########?????????????????? | | ?????????????????# # p #?????????????????? | | ?????????????????# # !##????????????????? | | ?????????????????# # " #??????????#+### | | ?????????????????# # "" ######### | | ??????????????????????# "T + | | ??????????????????????# "" ######### | | ??????????????????????+ "" #?????????? | | ??????????????????????# @ #??????????#? | | ???????????????=??????# #?????#?????? BB | | ??????????????????????#####+#;############## BB | | ??????????????/]???? ? # """ """ # | | ????????????????????? # """ """ # | | ???????????????????? # # | | ???????????????????? # # w | | ####??????????????? ######## # | | #?????????????# #?#????# = # | | ############### ##########/########### | | # ######## | | # Y | | # | | + Y ###### | | # ####+#+##########+###### # # | | # # !# ??# # # | | #### # / ?????# # # | | # """"" #???????# + ! # | | #= ""Y"" # + # # | | # # # # # | | # # ?+ # # | | ###+#########+######### ? ?### ### " | | #? ?????# ## #?# #?# ! # | | #? ???# ## #?# #?###### | | #? """" ?# """"" ## #?# #?????####+##### | +----------------------------------------------------+ Best States ------------- Heat Dissipation 109 Energy Generation 41 Energy Capacity 565 Matter Stores 300 Matter Capacity 300 Sight Range 24 Robot Scan Range 16 Terrain Scan Range 20 Terrain Scan Density 10 Armor Coverage 800 Resistance: KI 20 Evasion (%) 62 Targeting Accuracy 8 Recoil Reduction 2 Offensive Hacking 14 Defensive Hacking 21 Item Schematics ----------------- Assault Drone Bay | -5/Zhirov | Free Exp. Heat Sink | -5/Zhirov | Free Exp. Optical Array | -5/Zhirov | Free Imp. Arc Thrower | -5/Zhirov | Free Robot Schematics ------------------ None Fabricated ------------ Nothing Alien Tech Used ----------------- Integrated Dissipator Achievements -------------- None Challenges ------------ None Game ------ Seed MicrowarpSystemDerivative Manual? 0 Play Time 01:11:10 Cumulative 300.0 hours Start 2024.08.12 @ 17:39:54 End 2024.08.13 @ 16:45:20 Sessions 3 Manual Loads 0 Difficulty Rogue Special Mode None Game No. 301 Rogue 296 Adventurer 5 Explorer 0 Win Type - Total 5 Types 4/0/0/1/0/0/0/0/0 Lore% 64 Gallery% 79 Achievement% 66 Wizard Run 0 Options --------- Layout 1 ASCII 0 Keyboard 0 Movement Mouse Keybinds 0 Fullscreen 1 Font 24/Terminus Map View 50x35 Zoom Use 0% Tactical HUD 1 Map Filters NONE Filters NONE Steam 1 RUN: b81af51c-2242-474e-acea-839b3f14324d